fUSD/lending_fUSD_20241121
["ID","MTS","AMOUNT","RATE_DAILY","PERIOD"]
[342851573,1732181461117,-500.0,0.00041095,18]
[342851574,1732181461127,-500.0,0.00041095,18]
[342851575,1732181461138,-1229.26,0.00041095,18]
[342851576,1732181461148,-501.37,0.00041095,18]
[342851577,1732181461158,-500.0,0.00041095,18]
[342851578,1732181461169,-500.0,0.00041095,18]
[342851579,1732181461179,-500.0,0.00041095,18]
[342851580,1732181461190,-500.0,0.00041095,18]
[342851581,1732181461199,-1961.0,0.00041095,18]
[342851582,1732181461209,-904.6,0.00041095,18]
[342851583,1732181461218,-500.0,0.00041095,18]
[342851584,1732181461228,-500.0,0.00041095,18]
[342851585,1732181461237,-853.46,0.00041095,18]
[342851586,1732181461246,-3226.37,0.00041095,18]
[342851587,1732181461256,-500.0,0.00041095,18]
[342851588,1732181461266,-5375.12,0.00041095,18]
[342851589,1732181461276,-500.0,0.00041095,18]
[342851590,1732181461285,-872.88,0.00041095,18]
[342851591,1732181461295,-576.05,0.00041095,18]
[342851592,1732181461305,-500.0,0.00041095,18]
[342851593,1732181461314,-500.0,0.00041095,18]
[342851594,1732181461324,-500.0,0.00041095,18]
[342851595,1732181461334,-502.89,0.00041095,18]
[342851596,1732181461345,-639.66,0.00041095,18]
[342851597,1732181461354,-500.0,0.00041095,18]
[342851598,1732181461364,-500.0,0.00041095,18]
[342851599,1732181461374,-151.0,0.00041095,14]
[342851600,1732181461383,-500.0,0.00041095,18]
[342851601,1732181461398,-500.0,0.00041095,18]
[342851602,1732181461408,-170.391481,0.00041095,14]
[342851603,1732181461418,-151.0,0.00041095,14]
[342851604,1732181461431,-151.0,0.00041095,14]
[342851605,1732181461448,-867.4,0.00041095,18]
[342851606,1732181461458,-151.0,0.00041095,14]
[342851607,1732181461469,-500.0,0.00041095,18]
[342851608,1732181461479,-2748.47,0.00041095,18]
[342851609,1732181461488,-151.0,0.00041095,14]
[342851610,1732181461498,-151.0,0.00041095,14]
[342851611,1732181461508,-892.42,0.00041095,18]
[342851612,1732181461519,-582.11,0.00041095,18]
[342851613,1732181461528,-151.0,0.00041095,14]
[342851614,1732181461538,-151.0,0.00041095,14]
[342851615,1732181461548,-227.506067,0.00041095,14]
[342851616,1732181461559,-842.04,0.00041095,18]
[342851617,1732181461568,-805.52,0.00041095,18]
[342851618,1732181461577,-500.0,0.00041095,18]
[342851619,1732181461587,-1239.57,0.00041095,18]
[342851620,1732181461596,-500.0,0.00041095,18]
[342851621,1732181461606,-500.0,0.00041095,18]
[342851622,1732181461617,-500.0,0.00041095,18]
[342851623,1732181461627,-152.22773009,0.00041095,18]
[342851624,1732181461637,-508.68,0.00041095,18]
[342851625,1732181461647,-500.0,0.00041095,18]
[342851626,1732181461658,-500.0,0.00041095,18]
[342851627,1732181461668,-745.84,0.00041095,18]
[342851628,1732181461683,-500.0,0.00041095,18]
[342851629,1732181461698,-500.0,0.00041095,18]
[342851630,1732181461707,-500.0,0.00041095,18]
[342851631,1732181461717,-500.0,0.00041095,18]
[342851632,1732181461727,-5719.39,0.00041095,18]
[342851633,1732181461736,-1325.83,0.00041095,18]
[342851634,1732181461746,-522.09,0.00041095,18]
[342851635,1732181461755,-2097.19,0.00041095,18]
[342851636,1732181461765,-500.0,0.00041095,18]
[342851637,1732181461774,-1033.13,0.00041095,18]
[342851638,1732181461785,-808.52,0.00041095,18]
[342851639,1732181461795,-343.05874873,0.00041095,18]
[342851640,1732181461804,-1061.77,0.00041095,18]
[342851641,1732181461814,-500.0,0.00041095,18]
[342851642,1732181461824,-500.0,0.00041095,18]
[342851643,1732181461833,-531.35,0.00041095,18]
[342851644,1732181461843,-3218.29,0.00041095,18]
[342851645,1732181461852,-500.0,0.00041095,18]
[342851646,1732181461862,-500.0,0.00041095,18]
[342851647,1732181461872,-500.0,0.00041095,18]
[342851648,1732181461882,-500.0,0.00041095,18]
[342851649,1732181461892,-500.0,0.00041095,18]
[342851650,1732181461902,-500.0,0.00041095,18]
[342851651,1732181461911,-500.0,0.00041095,18]
[342851652,1732181461921,-500.0,0.00041095,18]
[342851653,1732181461937,-716.08,0.00041095,18]
[342851654,1732181461948,-500.0,0.00041095,18]
[342851655,1732181461957,-500.0,0.00041095,18]
[342851656,1732181461968,-500.0,0.00041095,18]
[342851657,1732181461977,-500.0,0.00041095,18]
[342851658,1732181461987,-500.0,0.00041095,18]
[342851659,1732181461997,-500.0,0.00041095,18]
[342851660,1732181462007,-500.0,0.00041095,18]
[342851661,1732181462017,-500.0,0.00041095,18]
[342851662,1732181462026,-500.0,0.00041095,18]
[342851663,1732181462036,-439.33554746,0.00041095,18]
[342851664,1732181462046,-1375.13,0.00041095,18]
[342851665,1732181462056,-1667.26,0.00041095,18]
[342851666,1732181462066,-500.0,0.00041095,18]
[342851667,1732181462076,-3544.63,0.00041095,18]
[342851668,1732181462087,-500.0,0.00041095,18]
[342851669,1732181462098,-500.0,0.00041095,18]
[342851670,1732181462107,-1446.85,0.00041095,18]
[342851671,1732181462116,-1199.16,0.00041095,18]
[342851672,1732181462125,-151.0,0.00041095,14]
[342851673,1732181462135,-611.19773254,0.00041095,18]
[342851674,1732181462145,-151.0,0.00041095,14]
[342851675,1732181462155,-151.0,0.00041095,14]
[342851676,1732181462165,-500.0,0.00041095,18]
[342851677,1732181462176,-151.0,0.00041095,14]
[342851678,1732181462186,-500.0,0.00041095,18]
[342851679,1732181462195,-151.0,0.00041095,14]
[342851680,1732181462205,-500.0,0.00041095,18]
[342851681,1732181462215,-500.0,0.00041095,18]
[342851682,1732181462224,-151.0,0.00041095,14]
[342851683,1732181462235,-151.0,0.00041095,14]
[342851684,1732181462245,-500.0,0.00041095,18]
[342851685,1732181462255,-500.0,0.00041095,18]
[342851686,1732181462265,-206.842207,0.00041095,14]
[342851687,1732181462275,-674.96,0.00041095,18]
[342851688,1732181462285,-5355.29,0.00041095,18]
[342851689,1732181462295,-500.0,0.00041095,18]
[342851690,1732181462305,-700.97,0.00041095,18]
[342851691,1732181462315,-1187.97,0.00041095,18]
[342851692,1732181462325,-500.0,0.00041095,18]
[342851693,1732181462335,-1187.97,0.00041095,18]
[342851694,1732181462345,-1187.97,0.00041095,18]
[342851695,1732181462355,-1187.97,0.00041095,18]
[342851696,1732181462364,-1187.97,0.00041095,18]
[342851697,1732181462374,-1187.97,0.00041095,18]
[342851698,1732181462384,-1187.97,0.00041095,18]
[342851699,1732181462396,-500.0,0.00041095,18]
[342851700,1732181462405,-500.0,0.00041095,18]
[342851701,1732181462415,-2849.89,0.00041095,18]
[342851702,1732181462426,-500.0,0.00041095,18]
[342851703,1732181462436,-1187.97,0.00041095,18]
[342851704,1732181462447,-1187.97,0.00041095,18]
[342851705,1732181462457,-500.0,0.00041095,18]
[342851706,1732181462469,-1187.97,0.00041095,18]
[342851707,1732181462479,-2072.69,0.00041095,18]
[342851708,1732181462490,-500.0,0.00041095,18]
[342851709,1732181462500,-1187.97,0.00041095,18]
[342851710,1732181462604,-1187.97,0.00041095,18]
[342851711,1732181462615,-702.62,0.00041095,18]
[342851712,1732181462624,-500.0,0.00041095,18]
[342851713,1732181462634,-1187.97,0.00041095,18]
[342851714,1732181462644,-500.0,0.00041095,18]
[342851715,1732181462654,-1187.97,0.00041095,18]
[342851716,1732181462663,-1187.97,0.00041095,18]
[342851717,1732181462674,-1187.97,0.00041095,18]
[342851718,1732181462686,-1187.97,0.00041095,18]
[342851719,1732181462698,-1000.0,0.00041095,18]
[342851720,1732181462710,-1187.97,0.00041095,18]
[342851721,1732181462723,-500.0,0.00041095,18]
[342851722,1732181462741,-1187.97,0.00041095,18]
[342851723,1732181462751,-1187.97,0.00041095,18]
[342851724,1732181462761,-500.0,0.00041095,18]
[342851725,1732181462770,-1187.97,0.00041095,18]
[342851726,1732181462780,-1187.97,0.00041095,18]
[342851727,1732181462789,-1187.97,0.00041095,18]
[342851728,1732181462800,-2565.56,0.00041095,18]
[342851729,1732181462810,-1187.97,0.00041095,18]
[342851730,1732181462820,-844.95,0.00041095,18]
[342851731,1732181462830,-500.0,0.00041095,18]
[342851732,1732181462840,-500.0,0.00041095,18]
[342851733,1732181462849,-590.19,0.00041095,18]
[342851734,1732181462859,-712.46,0.00041095,18]
[342851735,1732181462869,-500.0,0.00041095,18]
[342851736,1732181462879,-502.31651964,0.00041095,18]
[342851737,1732181462888,-508.28,0.00041095,18]
[342851738,1732181462897,-690.06,0.00041095,18]
[342851739,1732181462906,-2547.39,0.00041095,18]
[342851740,1732181462916,-500.0,0.00041095,18]
[342851741,1732181462927,-17324.04,0.00041095,18]
[342851742,1732181462942,-2127.59,0.00041095,18]
[342851743,1732181462951,-500.0,0.00041095,18]
[342851744,1732181462961,-500.0,0.00041095,18]
[342851745,1732181462970,-500.0,0.00041095,18]
[342851746,1732181462979,-500.0,0.00041095,18]
[342851747,1732181462988,-500.0,0.00041095,18]
[342851748,1732181462998,-657.42,0.00041095,18]
[342851749,1732181463007,-500.0,0.00041095,18]
[342851750,1732181463017,-1822.16,0.00041095,18]
[342851751,1732181463027,-500.0,0.00041095,18]
[342851752,1732181463037,-500.0,0.00041095,18]
[342851753,1732181463048,-500.0,0.00041095,18]
[342851754,1732181463058,-500.0,0.00041095,18]
[342851755,1732181463068,-2718.82,0.00041095,18]
[342851756,1732181463078,-500.0,0.00041095,18]
[342851757,1732181463089,-500.0,0.00041095,18]
[342851758,1732181463099,-500.0,0.00041095,18]
[342851759,1732181463109,-500.0,0.00041095,18]
[342851760,1732181463119,-513.12,0.00041095,18]
[342851761,1732181463130,-500.0,0.00041095,18]
[342851762,1732181463139,-513.12,0.00041095,18]
[342851763,1732181463149,-1014.84,0.00041095,18]
[342851764,1732181463159,-513.12,0.00041095,18]
[342851765,1732181463170,-500.0,0.00041095,18]
[342851766,1732181463182,-513.12,0.00041095,18]
[342851767,1732181463193,-589.31,0.00041095,18]
[342851768,1732181463203,-513.12,0.00041095,18]
[342851769,1732181463213,-513.12,0.00041095,18]
[342851770,1732181463224,-513.12,0.00041095,18]
[342851771,1732181463234,-500.0,0.00041095,18]
[342851772,1732181463244,-500.0,0.00041095,18]
[342851773,1732181463255,-513.12,0.00041095,18]
[342851774,1732181463265,-677.78,0.00041095,18]
[342851775,1732181463275,-513.12,0.00041095,18]
[342851776,1732181463286,-1220.77,0.00041095,18]
[342851777,1732181463297,-513.12,0.00041095,18]
[342851778,1732181463307,-513.12,0.00041095,18]
[342851779,1732181463317,-513.12,0.00041095,18]
[342851780,1732181463327,-500.0,0.00041095,18]
[342851781,1732181463338,-513.12,0.00041095,18]
[342851782,1732181463347,-513.12,0.00041095,18]
[342851783,1732181463358,-513.12,0.00041095,18]
[342851784,1732181463369,-513.12,0.00041095,18]
[342851785,1732181463380,-513.12,0.00041095,18]
[342851786,1732181463393,-151.0,0.00041095,14]
[342851787,1732181463406,-161.7998,0.00041095,14]
[342851788,1732181463417,-6173.61,0.00041095,18]
[342851789,1732181463428,-500.0,0.00041095,18]
[342851790,1732181463439,-500.0,0.00041095,18]
[342851791,1732181463449,-572.73,0.00041095,18]
[342851792,1732181463459,-500.0,0.00041095,18]
[342851793,1732181463472,-300.0,0.00041095,18]
[342851794,1732181463482,-500.0,0.00041095,18]
[342851795,1732181463491,-592.8,0.00041095,18]
[342851796,1732181463501,-500.0,0.00041095,18]
[342851797,1732181463510,-500.0,0.00041095,18]
[342851798,1732181463521,-2008.72,0.00041095,18]
[342851799,1732181463531,-500.0,0.00041095,18]
[342851800,1732181463540,-1084.54,0.00041095,18]
[342851801,1732181463550,-500.0,0.00041095,18]
[342851802,1732181463560,-500.0,0.00041095,18]
[342851803,1732181463570,-802.23,0.00041095,18]
[342851804,1732181463579,-729.96,0.00041095,18]
[342851805,1732181463589,-500.0,0.00041095,18]
[342851806,1732181463599,-500.0,0.00041095,18]
[342851807,1732181463609,-500.0,0.00041095,18]
[342851808,1732181463619,-500.0,0.00041095,18]
[342851809,1732181463629,-500.0,0.00041095,18]
[342851810,1732181463638,-500.0,0.00041095,18]
[342851811,1732181463648,-1826.256153,0.00041095,14]
[342851812,1732181463657,-500.0,0.00041095,18]
[342851813,1732181463667,-1826.256153,0.00041095,14]
[342851814,1732181463677,-605.01,0.00041095,18]
[342851815,1732181463686,-1826.256153,0.00041095,14]
[342851816,1732181463696,-500.0,0.00041095,18]
[342851817,1732181463705,-1826.256153,0.00041095,14]
[342851818,1732181463714,-1227.04,0.00041095,18]
[342851819,1732181463724,-1826.256153,0.00041095,14]
[342851820,1732181463734,-593.72,0.00041095,18]
[342851821,1732181463744,-1826.256153,0.00041095,14]
[342851822,1732181463754,-500.0,0.00041095,18]
[342851823,1732181463763,-1826.256153,0.00041095,14]
[342851824,1732181463773,-1949.01,0.00041095,18]
[342851825,1732181463782,-1826.256153,0.00041095,14]
[342851826,1732181463792,-500.0,0.00041095,18]
[342851827,1732181463802,-3055.98,0.00041095,18]
[342851828,1732181463811,-1837.19,0.00041095,18]
[342851829,1732181463821,-1826.256153,0.00041095,14]
[342851830,1732181463830,-1826.256153,0.00041095,14]
[342851831,1732181463840,-1826.256153,0.00041095,14]
[342851832,1732181463850,-500.0,0.00041095,18]
[342851833,1732181463859,-1826.256153,0.00041095,14]
[342851834,1732181463869,-1164.8,0.00041095,18]
[342851835,1732181463878,-1826.256153,0.00041095,14]
[342851836,1732181463888,-1088.54,0.00041095,18]
[342851837,1732181463897,-1918.3,0.00041095,18]
[342851838,1732181463907,-1826.256153,0.00041095,14]
[342851839,1732181463917,-500.0,0.00041095,18]
[342851840,1732181463928,-1826.256153,0.00041095,14]
[342851841,1732181463938,-1826.256145,0.00041095,14]
[342851842,1732181463948,-500.0,0.00041095,18]
[342851843,1732181463958,-500.0,0.00041095,18]
[342851844,1732181463968,-777.44,0.00041095,18]
[342851845,1732181463978,-679.94,0.00041095,18]
[342851846,1732181463988,-1679.1,0.00041095,18]
[342851847,1732181463997,-1839.48,0.00041095,18]
[342851848,1732181464007,-500.0,0.00041095,18]
[342851849,1732181464017,-582.06706769,0.00041095,18]
[342851850,1732181464027,-858.67,0.00041095,18]
[342851851,1732181464037,-1308.9,0.00041095,18]
[342851852,1732181464047,-500.0,0.00041095,18]
[342851853,1732181464057,-892.08,0.00041095,18]
[342851854,1732181464067,-3054.91,0.00041095,18]
[342851855,1732181464077,-500.0,0.00041095,18]
[342851856,1732181464087,-2980.75,0.00041095,18]
[342851857,1732181464096,-500.0,0.00041095,18]
[342851858,1732181464106,-520.05146407,0.00041095,18]
[342851859,1732181464116,-5860.67,0.00041095,18]
[342851860,1732181464126,-500.0,0.00041095,18]
[342851861,1732181464137,-500.0,0.00041095,18]
[342851862,1732181464147,-500.0,0.00041095,18]
[342851863,1732181464158,-500.0,0.00041095,18]
[342851864,1732181464168,-1258.95,0.00041095,18]
[342851865,1732181464180,-500.0,0.00041095,18]
[342851866,1732181464191,-500.0,0.00041095,18]
[342851867,1732181464202,-500.0,0.00041095,18]
[342851868,1732181464212,-500.0,0.00041095,18]
[342851869,1732181464222,-500.0,0.00041095,18]
[342851870,1732181464232,-500.0,0.00041095,18]
[342851871,1732181464243,-2479.66,0.00041095,18]
[342851872,1732181464253,-2411.93,0.00041095,18]
[342851873,1732181464264,-500.0,0.00041095,18]
[342851874,1732181464274,-500.0,0.00041095,18]
[342851875,1732181464284,-1121.98,0.00041095,18]
[342851876,1732181464295,-787.33,0.00041095,18]
[342851877,1732181464305,-500.0,0.00041095,18]
[342851878,1732181464314,-500.0,0.00041095,18]
[342851879,1732181464324,-307.93436413,0.00041095,18]
[342851880,1732181464334,-1318.18,0.00041095,18]
[342851881,1732181464345,-1170.13,0.00041095,18]
[342851882,1732181464356,-1893.81,0.00041095,18]
[342851883,1732181464367,-500.0,0.00041095,18]
[342851884,1732181464378,-500.0,0.00041095,18]
[342851885,1732181464390,-1557.34,0.00041095,18]
[342851886,1732181464403,-808.69,0.00041095,18]
[342851887,1732181464413,-500.0,0.00041095,18]
[342851888,1732181464423,-1842.88,0.00041095,18]
[342851889,1732181464438,-2612.0,0.00041095,18]
[342851890,1732181464448,-2945.63,0.00041095,18]
[342851891,1732181464459,-5268.54,0.00041095,18]
[342851892,1732181464468,-500.0,0.00041095,18]
[342851893,1732181464480,-1343.09,0.00041095,18]
[342851894,1732181464489,-500.0,0.00041095,18]
[342851895,1732181464500,-500.0,0.00041095,18]
[342851896,1732181464510,-1083.23,0.00041095,18]
[342851897,1732181464520,-326.533235,0.00041095,14]
[342851898,1732181464529,-1429.88,0.00041095,18]
[342851899,1732181464539,-326.533235,0.00041095,14]
[342851900,1732181464549,-326.533235,0.00041095,14]
[342851901,1732181464558,-500.0,0.00041095,16]
[342851902,1732181464568,-326.533235,0.00041095,14]
[342851903,1732181464577,-326.533235,0.00041095,14]
[342851904,1732181464587,-326.533235,0.00041095,14]
[342851905,1732181464597,-151.0,0.00041095,14]
[342851906,1732181464607,-991.87,0.00041095,18]
[342851907,1732181464617,-1462.84,0.00041095,18]
[342851908,1732181464627,-151.0,0.00041095,14]
[342851909,1732181464636,-1999.36,0.00041095,18]
[342851910,1732181464646,-151.0,0.00041095,14]
[342851911,1732181464657,-395.05398717,0.00041095,18]
[342851912,1732181464666,-500.0,0.00041095,18]
[342851913,1732181464679,-500.0,0.00041095,18]
[342851914,1732181464690,-151.0,0.00041095,14]
[342851915,1732181464700,-522.07,0.00041095,18]
[342851916,1732181464710,-500.0,0.00041095,18]
[342851917,1732181464720,-151.0,0.00041095,14]
[342851918,1732181464729,-326.533235,0.00041095,14]
[342851919,1732181464739,-151.0,0.00041095,14]
[342851920,1732181464749,-326.533235,0.00041095,14]
[342851921,1732181464758,-500.0,0.00041095,18]
[342851922,1732181464768,-500.0,0.00041095,18]
[342851923,1732181464777,-326.533235,0.00041095,14]
[342851924,1732181464787,-151.0,0.00041095,14]
[342851925,1732181464796,-500.0,0.00041095,18]
[342851926,1732181464806,-613.17,0.00041095,18]
[342851927,1732181464815,-326.533235,0.00041095,14]
[342851928,1732181464825,-151.0,0.00041095,14]
[342851929,1732181464835,-613.17,0.00041095,18]
[342851930,1732181464844,-326.533235,0.00041095,14]
[342851931,1732181464854,-613.17,0.00041095,18]
[342851932,1732181464864,-613.17,0.00041095,18]
[342851933,1732181464873,-326.533236,0.00041095,14]
[342851934,1732181464882,-613.17,0.00041095,18]
[342851935,1732181464891,-613.17,0.00041095,18]
[342851936,1732181464901,-500.0,0.00041095,18]
[342851937,1732181464911,-613.17,0.00041095,18]
[342851938,1732181464920,-613.17,0.00041095,18]
[342851939,1732181464932,-613.17,0.00041095,18]
[342851940,1732181464942,-613.17,0.00041095,18]
[342851941,1732181464951,-613.17,0.00041095,18]
[342851942,1732181464960,-691.19,0.00041095,18]
[342851943,1732181464970,-613.17,0.00041095,18]
[342851944,1732181464979,-1695.99,0.00041095,18]
[342851945,1732181464989,-613.17,0.00041095,18]
[342851946,1732181464999,-613.17,0.00041095,18]
[342851947,1732181465008,-500.0,0.00041095,18]
[342851948,1732181465018,-1035.57,0.00041095,18]
[342851949,1732181465027,-500.0,0.00041095,18]
[342851950,1732181465037,-613.17,0.00041095,18]
[342851951,1732181465045,-613.17,0.00041095,18]
[342851952,1732181465055,-613.17,0.00041095,18]
[342851953,1732181465065,-754.75,0.00041095,18]
[342851954,1732181465074,-500.0,0.00041095,18]
[342851955,1732181465084,-613.17,0.00041095,18]
[342851956,1732181465093,-613.17,0.00041095,18]
[342851957,1732181465102,-4057.27,0.00041095,18]
[342851958,1732181465112,-613.17,0.00041095,18]
[342851959,1732181465121,-613.17,0.00041095,18]
[342851960,1732181465132,-613.17,0.00041095,18]
[342851961,1732181465141,-1166.92,0.00041095,18]
[342851962,1732181465151,-1225.26,0.00041095,18]
[342851963,1732181465161,-500.0,0.00041095,18]
[342851964,1732181465170,-613.17,0.00041095,18]
[342851965,1732181465182,-613.24113446,0.00041095,18]
[342851966,1732181465191,-170.0755569,0.00041095,18]
[342851967,1732181465201,-53133.92,0.00041095,18]
[342851968,1732181465211,-500.0,0.00041095,18]
[342851969,1732181465220,-500.0,0.00041095,18]
[342851970,1732181465230,-739.94,0.00041095,18]
[342851971,1732181465240,-500.0,0.00041095,7]
[342851972,1732181465250,-2588.67,0.00041095,18]
[342851973,1732181465261,-397.41204418,0.00041095,18]
[342851974,1732181465270,-1474.92,0.00041095,18]
[342851975,1732181465279,-872.21,0.00041095,18]
[342851976,1732181465289,-500.0,0.00041095,18]
[342851977,1732181465299,-500.0,0.00041095,18]
[342851978,1732181465308,-500.0,0.00041095,18]
[342851979,1732181465318,-1134.55,0.00041095,18]
[342851980,1732181465327,-1000.83,0.00041095,18]
[342851981,1732181465337,-500.0,0.00041095,18]
[342851982,1732181465347,-1737.57,0.00041095,18]
[342851983,1732181465357,-2488.54,0.00041095,18]
[342851984,1732181465368,-500.0,0.00041095,18]
[342851985,1732181465379,-509.57042956,0.00041095,18]
[342851986,1732181465394,-500.0,0.00041095,18]
[342851987,1732181465404,-834.14,0.00041095,18]
[342851988,1732181465414,-500.0,0.00041095,18]
[342851989,1732181465424,-500.0,0.00041095,18]
[342851990,1732181465435,-500.0,0.00041095,18]
[342851991,1732181465445,-503.93215214,0.00041095,18]
[342851992,1732181465455,-293.453085,0.00041095,14]
[342851993,1732181465465,-3427.66,0.00041095,18]
[342851994,1732181465476,-500.0,0.00041095,18]
[342851995,1732181465486,-500.0,0.00041095,18]
[342851996,1732181465496,-2338.95,0.00041095,18]
[342851997,1732181465506,-2233.73,0.00041095,18]
[342851998,1732181465517,-500.0,0.00041095,18]
[342851999,1732181465526,-500.0,0.00041095,18]
[342852000,1732181465536,-645.96,0.00041095,18]
[342852001,1732181465546,-151.0,0.00041095,14]
[342852002,1732181465555,-1493.78,0.00041095,18]
[342852003,1732181465565,-151.0,0.00041095,14]
[342852004,1732181465575,-10701.11,0.00041095,18]
[342852005,1732181465585,-151.0,0.00041095,14]
[342852006,1732181465594,-639.3,0.00041095,18]
[342852007,1732181465604,-1841.11,0.00041095,18]
[342852008,1732181465614,-151.0,0.00041095,14]
[342852009,1732181465623,-151.0,0.00041095,14]
[342852010,1732181465633,-151.0,0.00041095,14]
[342852011,1732181465642,-151.0,0.00041095,14]
[342852012,1732181465652,-151.0,0.00041095,14]
[342852013,1732181465661,-151.0,0.00041095,14]
[342852014,1732181465670,-500.0,0.00041095,18]
[342852015,1732181465682,-151.0,0.00041095,14]
[342852016,1732181465692,-151.0,0.00041095,14]
[342852017,1732181465701,-500.0,0.00041095,18]
[342852018,1732181465711,-151.0,0.00041095,14]
[342852019,1732181465720,-151.0,0.00041095,14]
[342852020,1732181465729,-500.0,0.00041095,18]
[342852021,1732181465739,-151.0,0.00041095,14]
[342852022,1732181465748,-500.0,0.00041095,18]
[342852023,1732181465758,-151.0,0.00041095,14]
[342852024,1732181465768,-500.0,0.00041095,18]
[342852025,1732181465777,-1890.16,0.00041095,18]
[342852026,1732181465787,-500.0,0.00041095,18]
[342852027,1732181465796,-500.0,0.00041095,18]
[342852028,1732181465805,-1372.02,0.00041095,18]
[342852029,1732181465815,-500.0,0.00041095,18]
[342852030,1732181465824,-500.0,0.00041095,18]
[342852031,1732181465834,-500.0,0.00041095,18]
[342852032,1732181465844,-607.85,0.00041095,18]
[342852033,1732181465853,-2763.24,0.00041095,18]
[342852034,1732181465862,-2491.02,0.00041095,18]
[342852035,1732181465872,-500.0,0.00041095,18]
[342852036,1732181465881,-1434.53,0.00041095,18]
[342852037,1732181465891,-754.56,0.00041095,18]
[342852038,1732181465902,-899.27,0.00041095,18]
[342852039,1732181465912,-241.1984978,0.00041095,18]
[342852040,1732181466890,-362.63,0.00039881,2]
[342852041,1732181466900,-258.8015022,0.00041095,18]
[342852042,1732181466910,-171.857632,0.00041095,18]
[342852043,1732181466920,-500.0,0.00041095,18]
[342852044,1732181466931,-2364.86,0.00041095,18]
[342852045,1732181466941,-1403.85,0.00041095,18]
[342852046,1732181466950,-913.69,0.00041095,18]
[342852047,1732181466960,-500.0,0.00041095,18]
[342852048,1732181466969,-716.8,0.00041095,18]
[342852049,1732181466979,-500.0,0.00041095,18]
[342852050,1732181466988,-1393.2708658,0.00041095,18]
[342852051,1732181467000,-3771.47485719,0.00041095,18]
[342852052,1732181467012,-1625.92604506,0.00041095,18]
[342852053,1732181467036,-165.43823195,0.00041095,18]
[342852054,1732181467045,-500.0,0.00041095,18]
[342852055,1732181467054,-573.88,0.00041095,18]
[342852056,1732181467064,-1204.09,0.00041095,18]
[342852057,1732181467073,-504.20842686,0.00041095,18]
[342852058,1732181467083,-500.0,0.00041095,18]
[342852059,1732181467092,-78.41892272,0.00041095,18]
[342852060,1732181468441,-150.0,0.00039881,2]
[342852061,1732181468451,-764.41,0.00040959,2]
[342852062,1732181468461,-302.12,0.00040959,2]
[342852063,1732181468471,-433.47,0.00040974,2]
[342852064,1732181468482,-508.83107728,0.00041095,18]
[342852065,1732181468495,-272.13492272,0.00041095,18]
[342852066,1732181468511,-227.86507728,0.00041095,18]
[342852067,1732181468521,-550.81492272,0.00041095,18]
[342852068,1732181468628,-526.41507728,0.00041095,18]
[342852069,1732181468637,-484.45673021,0.00041095,18]
[342852070,1732181468650,-15.54326979,0.00041095,18]
[342852071,1732181468659,-310.41334439,0.00041095,18]
[342852073,1732182336090,-2689.35962995,0.00015342,10]